bitfinex/quotes_ETHUSD_20250511
["timestamp","ask_amount","ask_price","bid_price","bid_amount"]
[1746973079811,3.093,2481.2,2480.4,1.01766454]
[1746973080180,1.3682,2481.7,2480.4,1.01766454]
[1746973080488,10.05,2481.6,2480.5,0.79501278]
[1746973080812,10.05,2482.0,2481.0,0.7547]
[1746973081018,13.142,2482.4,2481.2,0.7547]
[1746973081218,12.25364961,2482.3,2481.3,0.87949932]
[1746973081557,0.55,2481.5,2480.6,0.7547]
[1746973081699,12.03016081,2481.3,2480.6,0.7547]
[1746973081895,0.55,2481.1,2480.3,2.10384538]
[1746973082132,0.8182,2481.0,2480.4,0.21]
[1746973082436,10.05,2480.9,2480.3,2.10384538]
[1746973082764,0.22504441,2480.8,2480.4,0.21038454]
[1746973083054,10.27504441,2480.8,2480.3,1.34914538]
[1746973083349,0.30033883,2480.7,2480.3,1.34914538]
[1746973083896,0.07529442,2480.7,2480.3,1.34914538]
[1746973084125,0.07529442,2480.7,2480.4,0.8161]
[1746973084437,3.091,2481.2,2480.4,0.8161]
[1746973084639,3.091,2481.2,2480.5,0.21652454]
[1746973084810,0.22468038,2481.1,2480.5,0.21652454]
[1746973085431,0.22468038,2481.1,2480.4,0.8161]
[1746973085432,3.091,2481.2,2480.4,0.8161]
[1746973086043,3.091,2481.2,2480.4,0.81231098]
[1746973086916,0.2245907,2481.1,2480.4,0.81231098]
[1746973087316,0.2245907,2481.1,2480.4,0.85262402]
[1746973087549,3.089,2481.2,2480.4,0.81231098]
[1746973087842,3.089,2481.2,2480.5,0.21614564]
[1746973088138,8.0,2481.1,2480.4,0.81231098]
[1746973088340,0.55,2481.0,2480.3,1.34914538]
[1746973088540,8.55,2481.0,2480.3,1.34914538]
[1746973089078,3.3136092,2480.9,2480.4,0.8161]
[1746973089560,3.3136092,2480.9,2480.3,1.34914538]
[1746973089704,0.2246092,2480.8,2480.3,1.34914538]
[1746973090539,0.2246092,2480.7,2480.3,1.34914538]
[1746973091411,0.2246092,2480.6,2480.3,1.34914538]
[1746973092430,10.2746092,2480.5,2480.3,1.34914538]
[1746973092617,15.6716078,2480.4,2480.3,1.34914538]
[1746973092827,0.55,2480.2,2479.5,0.8161]
[1746973093027,13.137,2480.1,2479.5,0.8161]
[1746973093552,0.2246092,2480.0,2479.5,0.8161]
[1746973094143,10.2746092,2480.0,2479.5,0.8161]
[1746973094503,10.05,2480.0,2479.5,0.8161]
[1746973095442,3.086,2480.1,2479.5,0.8161]
[1746973096015,10.05,2480.3,2479.5,0.8161]
[1746973096944,10.05,2480.3,2479.7,0.8328]
[1746973097337,10.05,2480.3,2479.9,0.8328]
[1746973098862,0.22428909,2480.2,2479.9,0.8328]
[1746973099321,0.22428909,2480.2,2480.1,0.7557]
[1746973099525,10.05,2480.7,2480.1,1.63530194]
[1746973099721,10.05,2481.1,2480.1,0.7557]
[1746973099963,10.05,2481.1,2480.2,0.04031628]
[1746973100165,10.05,2481.2,2480.3,0.7557]
[1746973100463,14.0782799,2482.5,2480.9,0.55]
[1746973100768,10.05,2482.5,2481.2,0.7557]
[1746973101062,4.02885451,2482.1,2481.2,0.7557]
[1746973101378,0.22436874,2482.4,2481.2,0.7557]
[1746973101379,0.22436874,2482.4,2481.3,0.79600164]
[1746973101558,0.22436874,2482.4,2481.3,0.7557]
[1746973102055,0.22436874,2482.3,2481.3,0.7557]
[1746973102463,0.22436874,2482.3,2481.1,0.55]
[1746973102764,0.22436874,2482.3,2481.3,0.55]
[1746973102932,0.04029301,2482.4,2481.4,0.04028716]
[1746973103264,0.04029301,2482.4,2481.4,0.34453599]
[1746973103450,0.04029301,2482.4,2481.5,3.082]
[1746973103651,0.04029301,2482.4,2481.6,3.09]
[1746973103826,8.04029301,2482.4,2481.7,0.04029058]
[1746973104279,8.04029301,2482.4,2481.6,3.09]
[1746973104772,8.04029301,2482.4,2481.4,0.38584883]
[1746973105428,8.04029301,2482.4,2481.5,0.7961]
[1746973106766,0.04029301,2482.4,2481.7,0.7961]
[1746973106968,10.05,2482.5,2481.8,0.04028715]
[1746973108136,0.04029301,2482.6,2481.8,0.13028715]
[1746973109172,0.04029301,2482.6,2481.7,0.7961]
[1746973109481,0.55,2482.5,2481.7,0.7961]
[1746973109650,8.55,2482.3,2481.6,0.162]
[1746973109851,4.06909257,2482.2,2481.6,0.162]
[1746973110063,4.06904176,2482.2,2481.6,0.162]
[1746973110590,0.04029301,2482.2,2481.6,0.162]
[1746973112756,8.55,2482.1,2481.6,0.162]
[1746973112983,0.04029301,2482.0,2481.6,0.162]
[1746973113877,0.04029301,2482.1,2481.6,0.162]
[1746973114063,10.05,2482.0,2481.6,0.162]
[1746973114258,0.04029301,2481.9,2481.6,0.162]
[1746973114456,10.09029301,2481.9,2481.6,0.162]
[1746973114919,10.05,2481.9,2481.6,0.162]
[1746973115693,0.04029301,2481.8,2481.6,0.162]
[1746973117198,8.04029301,2481.8,2481.6,0.162]
[1746973120102,18.09029301,2481.8,2481.6,0.162]
[1746973120299,10.05,2481.8,2481.6,0.162]
[1746973120612,0.04029301,2482.3,2481.6,0.162]
[1746973121114,0.04029301,2482.3,2481.7,0.7642]
[1746973121673,0.04029301,2482.5,2481.7,0.7642]
[1746973121920,0.802,2483.2,2481.8,0.80448711]
[1746973122120,0.04029301,2483.1,2481.8,1.71584871]
[1746973122415,8.04029301,2483.1,2481.8,1.71584871]
[1746973122620,0.04029301,2483.1,2481.9,0.7642]
[1746973123185,0.04029301,2483.1,2481.9,0.8742]
[1746973123615,8.04029301,2483.1,2481.9,0.8742]
[1746973123905,0.04029301,2483.1,2481.9,0.8742]
[1746973125415,0.04029301,2483.1,2481.9,0.91448632]
[1746973125810,0.22386254,2483.0,2481.9,0.91448632]
[1746973126120,0.04029301,2482.9,2481.9,1.28944863]
[1746973126505,0.04029301,2482.9,2482.0,0.7826]
[1746973126907,0.22386254,2482.8,2482.0,0.7826]
[1746973127093,0.04029301,2482.7,2482.0,0.7826]
[1746973127293,0.22386254,2482.8,2482.1,0.0402853]
[1746973127498,0.04029301,2482.9,2482.1,0.7826]
[1746973127716,0.04029301,2483.2,2482.1,0.7826]
[1746973127935,0.35142231,2483.2,2482.1,0.7826]
[1746973128121,0.04029301,2483.2,2482.1,0.7826]
[1746973128422,0.30120514,2483.1,2482.1,0.7826]
[1746973128627,0.04029301,2483.0,2482.1,0.7826]
[1746973129123,0.07740952,2482.9,2482.1,0.7826]
[1746973129322,0.30120514,2482.9,2482.1,0.7826]
[1746973129524,0.30120514,2482.9,2482.3,0.55]
[1746973129823,0.22379562,2482.9,2482.5,0.7561]
[1746973130020,0.22379562,2482.9,2482.4,6.18627115]
[1746973130021,0.22379562,2482.9,2482.7,0.7561]
[1746973130221,0.22379562,2483.7,2482.8,0.04027097]
[1746973130388,0.11770253,2483.6,2482.8,0.79637097]
[1746973130722,0.22379562,2483.5,2482.8,0.79637097]
[1746973130924,0.04029301,2483.4,2482.8,0.7561]
[1746973131084,0.11770253,2483.4,2482.8,0.7561]
[1746973131287,0.22379562,2483.3,2482.8,0.7561]
[1746973131485,0.04029301,2483.2,2482.8,0.7561]
[1746973131921,0.0876495,2483.1,2482.8,0.7561]
[1746973132322,0.04029301,2483.4,2482.8,0.7561]
[1746973132493,0.0876074,2483.0,2482.8,0.7561]
[1746973132695,0.04029301,2483.4,2482.8,0.7561]
[1746973133228,0.0876074,2483.3,2482.8,0.7561]
[1746973135130,0.04029301,2483.2,2482.8,0.7561]
[1746973135639,0.0873969,2483.1,2482.8,0.7561]
[1746973136234,0.04029301,2483.4,2482.8,0.7561]
[1746973136408,0.0873969,2483.0,2482.8,0.7561]
[1746973136606,0.04029301,2483.4,2482.8,0.7561]
[1746973136857,0.08701798,2483.3,2482.8,0.7561]
[1746973137164,0.04029301,2483.2,2482.8,0.7561]
[1746973137507,0.04029301,2483.4,2482.8,0.7561]
[1746973137737,0.08701798,2483.1,2482.8,0.7561]
[1746973137961,0.04029301,2483.4,2482.8,0.7561]
[1746973138145,0.08701798,2483.0,2482.8,0.7561]
[1746973138441,0.08701798,2482.9,2482.8,0.7561]
[1746973138605,0.7906,2483.9,2482.8,0.7561]
[1746973138810,0.1304692,2483.8,2482.8,0.7561]
[1746973139618,0.1304692,2483.8,2482.8,0.9361]
[1746973139823,0.1304692,2483.8,2483.0,0.7561]
[1746973140419,0.09017619,2483.8,2483.2,0.7561]
[1746973140624,8.04029301,2484.0,2483.2,0.7561]
[1746973140849,0.09017619,2483.9,2483.2,0.7561]
[1746973141915,0.04029301,2484.1,2483.2,0.7561]
[1746973142111,0.09118649,2483.8,2483.2,0.7561]
[1746973142319,0.04029301,2484.1,2483.2,0.9361]
[1746973142847,0.09118649,2484.0,2483.2,0.9361]
[1746973143051,0.04029301,2483.9,2483.2,0.9361]
[1746973143418,0.09118649,2483.8,2483.2,0.9361]
[1746973143821,0.09118649,2483.8,2483.2,0.7561]
[1746973144256,0.8276,2484.0,2483.2,0.7561]
[1746973144460,0.09118649,2483.7,2483.2,0.7561]
[1746973144642,0.04029301,2483.9,2483.2,0.7561]
[1746973144841,0.09223868,2483.6,2483.2,0.7561]
[1746973145051,0.04029301,2483.9,2483.2,0.7561]
[1746973145247,0.09223868,2483.5,2483.2,0.7561]
[1746973145424,0.22396261,2483.8,2483.2,0.7561]
[1746973145623,0.13253169,2483.7,2483.2,0.7561]
[1746973147223,8.0,2483.6,2482.8,0.8155]
[1746973147454,0.55,2483.4,2482.5,0.8155]
[1746973147662,0.55,2483.2,2482.5,0.8155]
[1746973147867,0.26411679,2483.1,2482.2,0.8155]
[1746973148168,0.35534537,2483.1,2482.3,0.01]
[1746973148648,0.35534537,2483.1,2482.3,0.30815894]
[1746973148834,0.22382378,2483.0,2482.3,1.86972483]
[1746973149041,0.08975516,2482.9,2482.3,1.85972483]
[1746973149355,0.13004817,2482.9,2482.3,1.85972483]
[1746973150048,0.08975516,2482.9,2482.3,1.56156589]
[1746973150253,3.06,2483.1,2482.2,0.8155]
[1746973150452,0.08849195,2482.8,2482.2,0.8155]
[1746973150765,0.04029301,2483.0,2482.2,0.8155]
[1746973150936,0.08849195,2482.7,2482.2,0.8155]
[1746973151142,0.04029301,2483.0,2482.2,0.8155]
[1746973151466,0.22392203,2482.9,2482.2,0.8155]
[1746973151666,0.04029301,2482.8,2482.2,0.8155]
[1746973152037,0.08849195,2482.7,2482.2,0.8155]
[1746973152367,0.08849195,2482.7,2482.3,0.85518202]
[1746973152531,0.08849195,2482.7,2482.3,3.8739]
[1746973152733,0.04029301,2483.3,2482.5,0.8149]
[1746973153000,0.22402105,2483.2,2482.6,0.8149]
[1746973153166,0.31242877,2483.2,2482.6,0.8149]
[1746973153831,0.08840772,2483.2,2482.6,0.8149]
[1746973154139,0.04029301,2483.5,2482.6,0.8149]
[1746973154352,0.08840772,2483.1,2482.6,0.8149]
[1746973154572,0.04029301,2483.5,2482.6,0.8149]
[1746973154754,0.08996567,2483.0,2482.6,0.8149]
[1746973154955,0.04029301,2483.5,2482.6,0.8149]
[1746973155151,0.08992357,2482.9,2482.6,0.8149]
[1746973155351,0.04029301,2483.6,2482.6,0.8149]
[1746973155529,0.08958675,2482.8,2482.6,0.8149]
[1746973155732,8.98114231,2483.6,2482.6,0.8149]
[1746973155968,13.00764409,2483.6,2482.6,0.8149]
[1746973156167,0.08958675,2483.5,2482.6,0.8149]
[1746973156366,0.04029301,2483.4,2482.6,0.8149]
[1746973156665,0.22392199,2483.3,2482.6,0.8149]
[1746973156874,0.04029301,2483.2,2482.6,0.8149]
[1746973157272,0.31350874,2483.1,2482.6,0.8149]
[1746973157473,0.04029301,2483.0,2482.3,0.7728]
[1746973157776,13.07311371,2483.0,2482.3,0.7728]
[1746973157982,0.31291926,2482.9,2482.3,0.7728]
[1746973158151,0.04029301,2482.8,2482.3,0.7728]
[1746973158471,0.08895516,2482.7,2482.3,0.7728]
[1746973158686,0.22392199,2482.7,2482.3,0.7728]
[1746973158842,0.12924817,2482.6,2482.3,0.7728]
[1746973159880,0.08895516,2482.6,2482.3,0.7728]
[1746973160082,0.04029301,2482.9,2482.3,0.7728]
[1746973160241,0.08895516,2482.5,2482.3,0.7728]
[1746973160444,0.43114231,2482.9,2482.3,0.7728]
[1746973160641,0.08895516,2482.8,2482.3,0.7728]
[1746973160844,0.04029301,2482.7,2482.3,0.7728]
[1746973161090,0.22380414,2482.6,2482.3,0.7728]
[1746973161258,0.04029301,2482.5,2482.3,0.7728]
[1746973161688,0.08895516,2482.4,2482.3,0.7728]
[1746973161841,0.04029301,2482.8,2482.3,0.7728]
[1746973162048,0.08895516,2482.7,2482.3,0.7728]
[1746973162251,0.38890724,2482.8,2482.3,0.7728]
[1746973162448,0.08895516,2482.6,2482.3,0.7728]
[1746973162647,0.38890724,2482.8,2482.3,0.7728]
[1746973162873,0.08895516,2482.5,2482.3,0.7728]
[1746973163071,0.22362955,2482.7,2482.3,0.7728]
[1746973163273,0.08676541,2482.4,2482.3,0.7728]
[1746973163448,0.04029301,2482.6,2482.3,0.7728]
[1746973163648,0.08676541,2482.5,2482.3,0.7728]
[1746973164350,0.04029301,2482.8,2482.3,0.7728]
[1746973164583,0.08676541,2482.4,2482.3,0.7728]
[1746973164787,0.04029301,2482.8,2482.3,0.7728]
[1746973164995,0.08676541,2482.4,2482.3,0.7728]
[1746973165469,0.34982231,2482.8,2482.3,0.7728]
[1746973165667,0.08676541,2482.4,2482.3,0.7728]
[1746973165986,0.34982231,2482.8,2482.3,0.7728]
[1746973166151,0.08676541,2482.4,2482.3,0.7728]
[1746973166353,0.34982231,2482.8,2482.3,0.7728]
[1746973166553,0.08676541,2482.4,2482.3,0.7728]
[1746973166752,0.04029301,2483.0,2482.3,0.7728]
[1746973167046,3.053,2483.3,2482.3,0.7728]
[1746973167247,0.08554413,2483.2,2482.3,0.7728]
[1746973167856,0.22324314,2483.1,2482.3,0.7728]
[1746973168053,0.08617586,2483.0,2482.3,0.7728]
[1746973168594,0.88587586,2483.0,2482.3,0.7728]
[1746973168769,0.26353615,2482.9,2482.3,0.7728]
[1746973169300,0.08617586,2482.8,2482.3,0.7728]
[1746973169654,0.08617586,2482.8,2482.4,0.04028402]
[1746973169884,0.7997,2483.7,2482.5,0.7764]
[1746973170196,3.062,2484.1,2482.8,0.7764]
[1746973170197,0.04029301,2483.6,2482.8,0.7764]
[1746973170390,0.11889512,2483.6,2482.9,0.91791084]
[1746973170696,0.07860211,2483.5,2483.0,0.7764]
[1746973171191,0.04029301,2483.8,2483.0,0.7764]
[1746973171391,3.8617,2484.1,2483.1,0.83796841]
[1746973171392,0.07860211,2483.4,2483.1,0.83796841]
[1746973171588,0.04029301,2484.0,2483.1,0.83796841]
[1746973171809,0.07860211,2483.3,2483.2,11.062]
[1746973172010,0.04029301,2484.0,2483.2,0.7977]
[1746973172173,0.22357919,2483.9,2483.2,0.7977]
[1746973172378,0.30470949,2483.9,2483.2,0.7977]
[1746973172821,0.30470949,2483.9,2483.3,0.0402634]
[1746973173117,0.0811303,2483.9,2483.4,0.7977]
[1746973173284,0.04029301,2484.2,2483.5,0.04026093]
[1746973173489,0.73450231,2484.2,2483.5,0.04026093]
[1746973173718,0.08277296,2484.1,2483.5,0.04026093]
[1746973174428,0.04029301,2484.0,2483.4,0.7977]
[1746973175093,8.53535836,2483.9,2483.1,0.7714]
[1746973175289,8.04029301,2483.8,2483.1,0.7714]
[1746973175522,0.4904607,2483.7,2483.1,0.7714]
[1746973175677,0.04029301,2483.6,2483.1,0.7714]
[1746973176124,0.08260451,2483.5,2483.1,0.7714]
[1746973176279,0.12289752,2483.5,2483.1,0.7714]
[1746973177424,0.08260451,2483.5,2483.1,0.7714]
[1746973177780,0.04029301,2483.7,2483.1,0.7714]
[1746973177984,0.08260451,2483.4,2483.1,0.7714]
[1746973178177,0.04029301,2483.7,2483.1,0.7714]
[1746973178382,0.59029301,2483.8,2483.1,0.7714]
[1746973178626,0.08260451,2483.6,2483.1,0.7714]
[1746973178930,0.08260451,2483.5,2483.1,0.7714]
[1746973179078,4.02626153,2483.7,2483.1,0.7714]
[1746973179426,0.59029301,2483.8,2483.1,0.7714]
[1746973179427,0.08260451,2483.4,2483.1,0.7714]
[1746973179604,0.50194846,2483.6,2483.1,0.7714]
[1746973180122,0.30582461,2483.5,2483.1,0.7714]
[1746973180420,0.04029301,2483.4,2483.1,0.7714]
[1746973180799,0.08479567,2483.3,2483.1,0.7714]
[1746973181184,0.08479567,2483.3,2482.6,0.8158]
[1746973181185,10.13479567,2483.3,2482.6,0.8158]
[1746973181487,0.04029301,2483.2,2482.0,3.048]
[1746973181698,10.05,2483.1,2482.1,8.8158]
[1746973181932,0.04029301,2483.0,2482.2,0.8158]
[1746973182080,0.12327745,2483.0,2482.2,0.8158]
[1746973182287,0.12327745,2483.0,2482.2,1.11904401]
[1746973182489,0.12327745,2483.0,2482.3,0.9119044]
[1746973185528,0.08298444,2483.0,2482.4,0.81728133]
[1746973185917,0.08298444,2483.0,2482.4,0.777]
[1746973186520,0.08298444,2483.0,2482.5,0.04027501]
[1746973186720,0.08298444,2483.0,2482.6,0.777]
[1746973186921,0.08298444,2483.0,2482.6,3.825]
[1746973187306,0.08298444,2483.0,2482.6,4.5118]
[1746973187927,0.12327745,2483.0,2482.6,3.825]
[1746973190307,0.12327745,2483.0,2482.3,0.777]
[1746973190636,0.12327745,2483.0,2481.8,1.34336184]
[1746973190637,0.8055,2482.7,2481.8,1.34336184]
[1746973190938,12.02860361,2482.3,2481.8,1.34336184]
[1746973191094,0.12029023,2482.2,2481.8,1.34336184]
[1746973191295,10.8555,2482.1,2481.8,1.34336184]
[1746973191496,10.05,2482.1,2481.8,1.34336184]
[1746973191697,0.07999722,2482.0,2481.8,2.12036184]
[1746973191895,0.07999722,2482.0,2481.8,5.16836184]
[1746973192221,10.09029301,2482.9,2481.9,2.13814551]
[1746973192534,0.07999722,2482.8,2481.9,2.09786499]
[1746973192719,0.07999722,2482.8,2482.1,0.777]
[1746973192923,0.07999722,2482.8,2482.4,0.777]
[1746973193234,0.07999722,2482.8,2482.5,0.04027631]
[1746973193438,0.07999722,2482.8,2482.5,0.88172763]
[1746973194835,0.07999722,2482.8,2482.6,8.0]
[1746973195025,0.07999722,2482.8,2482.7,0.81727172]
[1746973195224,10.05,2483.3,2482.7,0.777]
[1746973195535,10.09029301,2483.6,2482.8,3.07926982]
[1746973195733,10.09029301,2483.6,2482.8,4.2648968]
[1746973197100,10.09029301,2483.6,2482.8,4.2748968]
[1746973198413,10.09029301,2483.6,2482.9,0.7795]
[1746973198614,10.09029301,2483.6,2483.0,0.04026979]
[1746973198805,10.09029301,2483.6,2482.9,0.81976979]
[1746973199005,10.05,2483.6,2483.0,0.50543968]
[1746973199232,0.04029301,2483.9,2483.1,0.04026741]
[1746973199442,0.2235828,2483.8,2483.1,0.04026741]
[1746973200041,0.2235828,2483.7,2483.1,0.33897068]
[1746973200602,0.08290453,2483.6,2483.1,0.33897068]
[1746973201038,0.08290453,2483.6,2483.2,0.7795]
[1746973201342,0.08290453,2483.5,2483.3,0.45690807]
[1746973201546,0.26387581,2483.8,2483.3,0.41664707]
[1746973201724,0.08290453,2483.7,2483.3,0.41664707]
[1746973201936,10.05,2483.9,2483.3,0.45691043]
[1746973202137,0.08290453,2483.8,2483.3,0.41664707]
[1746973202339,0.08290453,2483.8,2483.4,0.91961471]
[1746973202722,0.08290453,2483.8,2483.5,0.04026191]
[1746973204070,0.08290453,2483.8,2483.4,0.91961471]
[1746973204273,0.12319754,2483.8,2483.2,8.7795]
[1746973204435,0.12319754,2483.8,2483.2,10.0426643]
[1746973204847,0.12319754,2483.8,2483.2,0.7795]
[1746973205365,0.8095,2483.7,2483.1,0.29870327]
[1746973205581,0.12492456,2483.6,2482.9,3.8057]
[1746973206934,0.12492456,2483.6,2482.9,3.048]
[1746973207133,0.8095,2483.4,2482.8,0.01]
[1746973207458,10.17441915,2483.3,2482.8,0.01]
[1746973207773,3.032,2483.2,2482.8,0.01]
[1746973207973,0.12336605,2483.1,2482.8,0.01]
[1746973208474,0.12336605,2483.1,2482.2,0.7577]
[1746973208636,10.05,2483.0,2482.2,0.7577]
[1746973208836,0.04029301,2482.9,2482.2,0.7577]
[1746973209046,0.8292,2482.8,2482.1,0.29823628]
[1746973209391,0.04029301,2482.7,2481.9,3.7907]
[1746973209588,0.04029301,2482.7,2482.0,0.04028596]
[1746973209892,0.08176689,2482.6,2482.0,0.04028596]
[1746973210190,0.08176689,2482.6,2481.9,3.7907]
[1746973210404,0.08176689,2482.6,2482.0,1.96260618]
[1746973210762,0.04029301,2482.7,2482.0,0.29895406]
[1746973210988,0.04029301,2482.7,2481.9,3.7907]
[1746973211291,0.08024966,2482.6,2481.9,3.7907]
[1746973211670,10.05,2482.5,2481.9,0.7577]
[1746973211870,12.89800105,2482.4,2481.8,1.34336184]
[1746973212068,12.16562211,2482.4,2481.8,1.34336184]
[1746973213129,0.2639713,2482.3,2481.8,1.34336184]
[1746973213600,0.07919578,2482.2,2481.8,1.34336184]
[1746973213962,0.04029301,2482.3,2481.8,1.34336184]
[1746973214303,10.67537111,2482.2,2481.8,1.34336184]
[1746973214487,0.04029301,2482.1,2481.8,1.34336184]
[1746973214693,0.8318,2481.9,2481.8,1.34336184]
[1746973215001,4.86205598,2481.3,2480.2,0.7564]
[1746973215297,4.57938068,2481.8,2479.9,0.7564]
[1746973215298,0.8318,2481.1,2479.9,0.7564]
[1746973215499,8.0,2480.9,2479.9,0.7564]
[1746973215671,0.04029301,2480.8,2479.9,0.7564]
[1746973215876,0.11822384,2480.8,2479.9,0.7564]
[1746973216188,0.07793083,2480.7,2480.0,0.04031834]
[1746973216503,0.87209301,2480.6,2479.6,0.7564]
[1746973216678,3.029,2480.5,2479.6,1.27270574]
[1746973216893,0.04029301,2480.4,2479.6,0.7564]
[1746973217219,10.04617533,2480.3,2479.5,1.37265738]
[1746973217517,0.04029301,2480.2,2479.5,1.37265738]
[1746973218790,10.08646834,2480.3,2479.5,1.37265738]
[1746973218981,10.04617533,2480.3,2479.7,0.7829]
[1746973219179,10.04617533,2480.3,2479.8,0.04032107]
[1746973220016,10.04617533,2480.3,2479.8,0.92264318]
[1746973220647,0.04029301,2480.2,2479.7,0.7829]
[1746973220781,0.04029301,2480.2,2479.6,8.0]
[1746973220986,0.04029301,2480.2,2479.7,0.24]
[1746973222085,10.08646834,2480.2,2479.7,0.24]
[1746973223219,8.8085,2480.0,2478.8,0.822]
[1746973223423,8.8085,2480.0,2479.2,0.24]
[1746973223424,0.04029301,2479.9,2479.2,0.24]
[1746973224438,0.04029301,2479.9,2478.9,0.28033141]
[1746973224831,0.04029301,2479.9,2479.0,1.372]
[1746973225124,0.8085,2480.9,2479.4,0.822]
[1746973225415,0.8085,2480.9,2479.1,42.99135473]
[1746973225416,0.04029301,2480.8,2479.7,0.822]
[1746973225618,0.04029301,2480.8,2479.8,3.9192]
[1746973226024,0.04029301,2480.8,2479.9,8.0]
[1746973226238,10.04617533,2480.7,2479.8,3.9192]
[1746973226407,18.89496834,2480.6,2479.4,8.822]
[1746973226610,10.04617533,2480.5,2479.4,8.822]
[1746973226790,0.04029301,2480.4,2479.4,8.822]
[1746973226990,0.59029301,2480.4,2479.4,8.822]
[1746973227187,8.59029301,2480.4,2479.4,0.822]
[1746973227415,0.8085,2480.3,2479.3,3.037]
[1746973227617,0.04029301,2480.2,2479.3,4.87713298]
[1746973227791,0.04029301,2480.2,2479.3,3.037]
[1746973231153,10.04617533,2480.1,2479.3,3.037]
[1746973231338,0.04029301,2480.0,2479.3,3.037]
[1746973231724,0.18401008,2479.9,2479.3,3.037]
[1746973236675,0.7753,2479.8,2479.3,3.037]
[1746973237040,0.17974402,2479.7,2479.3,3.037]
[1746973237241,0.7753,2479.8,2479.3,3.037]
[1746973237441,0.22012152,2479.7,2478.9,8.24]
[1746973237676,0.04029301,2479.7,2478.9,9.47882738]
[1746973238175,0.17982851,2479.6,2478.9,9.47882738]
[1746973239768,0.7753,2479.8,2478.9,9.47882738]
[1746973239968,0.17982851,2479.7,2478.9,9.47882738]
[1746973241506,0.22012152,2479.7,2479.0,0.04033422]
[1746973241689,0.22012152,2479.7,2479.0,1.68922966]
[1746973242375,0.22012152,2479.7,2478.9,0.24]
[1746973242589,10.04617533,2479.6,2478.9,0.24]
[1746973242886,1.0405836,2479.5,2478.9,0.24]
[1746973243285,10.04617533,2479.4,2478.9,0.24]
[1746973243492,0.7929,2479.2,2478.9,0.24]
[1746973243695,0.04029301,2479.1,2478.9,0.24]
[1746973243880,10.83907533,2479.0,2478.9,0.24]
[1746973244082,11.23929261,2479.0,2478.9,0.24]
[1746973244323,11.23929261,2479.0,2478.1,8.7769]
[1746973244528,0.04029301,2478.9,2478.2,1.18009]
[1746973244693,0.04029301,2478.9,2478.1,0.7769]
[1746973245033,0.17661707,2478.8,2478.1,8.7769]
[1746973245385,0.17661707,2478.8,2478.1,9.07190019]
[1746973245594,0.17661707,2478.8,2478.2,0.04034521]
[1746973245848,4.03179974,2480.3,2478.2,0.04034521]
[1746973245849,0.7929,2479.3,2478.3,0.7769]
[1746973245977,0.17661707,2479.2,2478.4,3.05933773]
[1746973246177,0.17661707,2479.2,2478.5,0.38362377]
[1746973248316,0.17661707,2479.2,2478.7,8.0]
[1746973248718,0.7929,2479.3,2478.7,8.0]
[1746973249018,0.17577161,2479.2,2478.7,8.0]
[1746973249324,0.04029301,2479.2,2478.7,8.0]
[1746973249519,0.04029301,2479.2,2478.6,3.024]
[1746973250186,0.17577161,2479.1,2478.6,3.024]
[1746973250386,0.39956036,2479.1,2478.3,0.7769]
[1746973250583,0.04029301,2479.0,2478.3,0.7769]
[1746973250833,0.17712428,2478.9,2478.4,0.04034314]
[1746973251029,0.04029301,2479.0,2478.4,0.04034314]
[1746973251231,0.17623663,2478.9,2478.4,0.04034314]
[1746973251424,0.04029301,2479.2,2478.4,0.04034314]
[1746973251604,0.17619436,2479.1,2478.4,0.04034314]
[1746973251804,0.17619436,2479.1,2478.4,0.79729646]
[1746973252200,10.82787533,2479.5,2478.4,0.79729646]
[1746973252405,0.15843128,2479.4,2478.5,0.7822]
[1746973252727,0.19872429,2479.4,2478.5,0.7822]
[1746973252924,0.15843128,2479.4,2478.5,0.7822]
[1746973253332,0.15843128,2479.4,2478.6,0.04033418]
[1746973253725,0.19872429,2479.4,2478.5,0.7822]
[1746973254235,0.15843128,2479.4,2478.5,0.7822]
[1746973255234,0.19872429,2479.4,2478.5,1.73611533]
[1746973255437,0.7946,2479.3,2478.3,3.7882]
[1746973255639,0.7946,2479.3,2477.7,12.7]
[1746973255640,0.7946,2479.1,2478.0,0.7732]
[1746973255843,0.04029301,2479.0,2478.1,3.024]
[1746973256028,0.15915089,2478.9,2478.2,8.0]
[1746973257341,0.15915089,2478.9,2478.2,8.04034317]
[1746973257745,0.04029301,2479.0,2478.2,9.55500629]
[1746973257925,0.04029301,2479.0,2478.2,9.51466312]
[1746973258133,0.04029301,2479.0,2478.3,0.04034479]
[1746973258670,0.04029301,2479.0,2478.3,0.04034518]
[1746973258875,0.95370856,2478.9,2478.3,0.04034518]
[1746973259171,0.04029301,2478.8,2478.2,8.0]
[1746973259370,0.7946,2478.9,2478.3,0.04034479]
[1746973259683,0.15910856,2478.8,2478.3,0.04034479]
[1746973260371,0.15910856,2478.8,2478.2,9.2092288]
[1746973260739,0.15910856,2478.8,2478.4,0.7732]
[1746973260974,0.15910856,2478.8,2478.6,8.0]
[1746973261182,0.7946,2479.3,2478.6,8.0]
[1746973261183,0.04029301,2479.2,2478.7,1.10533368]
[1746973261348,0.04029301,2479.2,2478.2,1.2092288]
[1746973261546,0.94307715,2479.1,2478.2,6.036]
[1746973261861,0.7986,2478.9,2478.2,3.024]
[1746973262060,0.18498209,2478.8,2478.2,3.024]
[1746973262446,0.14468908,2478.8,2478.3,8.04034689]
[1746973262643,0.14468908,2478.8,2478.3,8.0]
[1746973262847,0.14468908,2478.8,2478.4,1.94563967]
[1746973263089,0.7986,2479.2,2478.4,1.94563967]
[1746973263387,0.14451953,2479.1,2478.6,8.0]
[1746973263551,0.7986,2479.5,2478.7,1.3529]
[1746973263746,0.7986,2480.0,2479.1,0.8029]
[1746973263944,0.13580053,2479.9,2479.3,8.0]
[1746973264148,0.13580053,2479.9,2479.5,8.0]
[1746973264342,0.7986,2480.5,2479.7,0.8029]
[1746973264579,0.7986,2480.5,2479.2,3.011]
[1746973264580,0.7986,2480.3,2479.0,14.8379]
[1746973264797,0.7986,2480.1,2479.0,14.8379]
[1746973264975,0.7986,2479.9,2479.0,14.8379]
[1746973265158,0.7986,2479.9,2479.2,8.0]